bitfinex-derivatives/quotes_BTCF0:USTF0_20250729
["timestamp","ask_amount","ask_price","bid_price","bid_amount"]
[1753799625766,4e-05,118210.0,118200.0,2.06456741]
[1753799625962,0.09004,118210.0,118200.0,2.06456741]
[1753799626666,0.11004,118210.0,118200.0,2.06456741]
[1753799626963,4e-05,118210.0,118200.0,2.06456741]
[1753799627170,0.12004,118210.0,118200.0,2.06456741]
[1753799629668,0.2892301,118210.0,118200.0,2.06456741]
[1753799630969,0.12004,118210.0,118200.0,2.06456741]
[1753799632569,0.2892301,118210.0,118200.0,2.06456741]
[1753799633873,0.12004,118210.0,118200.0,2.06456741]
[1753799634772,0.2892301,118210.0,118200.0,2.06456741]
[1753799635373,0.12004,118210.0,118200.0,2.06456741]
[1753799635769,0.2892301,118210.0,118200.0,2.06456741]
[1753799636174,0.3377801,118210.0,118200.0,2.06456741]
[1753799637274,0.04859,118210.0,118200.0,2.06456741]
[1753799637474,0.13859,118210.0,118200.0,2.06456741]
[1753799638279,0.15802902,118210.0,118200.0,2.06456741]
[1753799638478,0.13859,118210.0,118200.0,2.06456741]
[1753799638682,0.3077801,118210.0,118200.0,2.06456741]
[1753799640475,0.3077801,118210.0,118200.0,1.82399751]
[1753799640675,0.6243501,118210.0,118200.0,1.82399751]
[1753799640877,0.7382001,118210.0,118200.0,1.82399751]
[1753799641078,0.7382001,118210.0,118200.0,1.12871751]
[1753799641385,0.7382001,118210.0,118200.0,1.82359751]
[1753799643384,0.15859,118210.0,118200.0,2.06416741]
[1753799643576,0.3277801,118210.0,118200.0,2.06416741]
[1753799644079,0.04859,118210.0,118200.0,2.06416741]
[1753799644284,0.3477801,118210.0,118200.0,2.06416741]
[1753799645380,0.2177801,118210.0,118200.0,2.06416741]
[1753799645584,0.3177801,118210.0,118200.0,2.06416741]
[1753799646787,0.3674001,118210.0,118200.0,2.06416741]
[1753799646988,0.4386401,118210.0,118200.0,2.06416741]
[1753799648187,0.4386401,118210.0,118200.0,1.82359751]
[1753799649981,0.4386401,118210.0,118200.0,1.12871751]
[1753799650188,0.3422227,118230.0,118220.0,0.5310658]
[1753799650382,0.8004727,118230.0,118220.0,1.8271157]
[1753799651291,0.5660727,118230.0,118220.0,1.8271157]
[1753799651594,0.8004727,118230.0,118220.0,1.8281157]
[1753799652094,0.6904727,118230.0,118220.0,1.8281157]
[1753799652294,0.8004727,118230.0,118220.0,1.8281157]
[1753799652492,0.8004727,118230.0,118220.0,1.8291157]
[1753799654496,0.3215027,118230.0,118220.0,1.8291157]
[1753799654793,0.3690827,118230.0,118220.0,1.8291157]
[1753799656692,0.3690827,118230.0,118220.0,1.88996539]
[1753799657392,0.2537144,118250.0,118240.0,0.2009472]
[1753799657696,0.3797409,118260.0,118250.0,0.4717729]
[1753799657899,0.8245109,118260.0,118250.0,0.7601628]
[1753799658995,0.8245109,118260.0,118250.0,0.7672348]
[1753799659796,0.8275109,118260.0,118250.0,0.7672348]
[1753799660194,0.5562389,118260.0,118250.0,0.7672348]
[1753799660395,0.7170989,118260.0,118250.0,1.1280348]
[1753799660596,0.7852289,118260.0,118250.0,1.1280348]
[1753799661200,0.7852289,118260.0,118250.0,1.19645785]
[1753799661493,0.7852289,118260.0,118250.0,0.83565785]
[1753799661689,0.7852289,118260.0,118250.0,0.7672348]
[1753799662197,0.2848429,118250.0,118240.0,0.06083945]
[1753799662401,0.2848429,118250.0,118230.0,0.1691576]
[1753799662402,0.6299672,118240.0,118230.0,0.06083945]
[1753799662593,0.9905371,118240.0,118230.0,0.75515945]
[1753799663198,0.7499672,118240.0,118230.0,0.92432095]
[1753799664296,0.7499672,118240.0,118230.0,1.09074891]
[1753799664597,0.7499672,118240.0,118230.0,1.27047936]
[1753799664805,0.7499672,118240.0,118230.0,1.41386936]
[1753799665391,0.7509672,118240.0,118230.0,1.41386936]
[1753799668702,0.7509672,118240.0,118230.0,1.17329946]
[1753799669005,0.7509672,118240.0,118230.0,1.41386936]
[1753799669706,0.7509672,118240.0,118230.0,1.46168936]
[1753799670701,0.7509672,118240.0,118230.0,1.41386936]
[1753799670901,0.3852972,118240.0,118230.0,1.46168936]
[1753799671206,0.4534272,118240.0,118230.0,1.46168936]
[1753799671407,0.6451872,118240.0,118230.0,1.46168936]
[1753799671611,0.7509672,118240.0,118230.0,1.46168936]
[1753799677509,1.3523371,118240.0,118230.0,0.69408]
[1753799678009,0.1691615,118230.0,118220.0,0.79235835]
[1753799678209,0.5791215,118230.0,118220.0,0.94293373]
[1753799678410,0.7399815,118230.0,118220.0,1.63697373]
[1753799678614,0.7399815,118230.0,118220.0,0.37066483]
[1753799678813,0.7399815,118230.0,118220.0,1.23388073]
[1753799679517,0.7399815,118230.0,118220.0,1.23588073]
[1753799680210,0.7399815,118230.0,118220.0,0.54184073]
[1753799680516,0.7399815,118230.0,118220.0,1.23584073]
[1753799680920,0.7399815,118230.0,118220.0,0.54184073]
[1753799681107,0.7399815,118230.0,118220.0,1.23584073]
[1753799681309,0.9805514,118230.0,118220.0,0.07002483]
[1753799681510,0.9805514,118230.0,118220.0,0.002]
[1753799681511,1.3413514,118230.0,118220.0,0.002]
[1753799681719,1.3413514,118230.0,118220.0,0.696]
[1753799683516,1.3483531,118230.0,118220.0,0.696]
[1753799684815,1.3413514,118230.0,118220.0,0.696]
[1753799685817,1.1007815,118230.0,118220.0,0.696]
[1753799687929,1.1007815,118230.0,118220.0,0.1711758]
[1753799688116,0.5109915,118230.0,118220.0,1.4648857]
[1753799688316,0.7466215,118230.0,118220.0,0.7709257]
[1753799688624,1.1074215,118230.0,118220.0,0.69588]
[1753799689214,1.1074215,118230.0,118220.0,0.8633]
[1753799689815,1.1074615,118230.0,118220.0,0.8633]
[1753799690917,1.1074615,118230.0,118220.0,0.16942]
[1753799691117,1.1074615,118230.0,118220.0,0.69588]
[1753799692126,1.1074615,118230.0,118220.0,0.8633]
[1753799692721,1.1074615,118230.0,118220.0,0.89466]
[1753799693025,1.1074615,118230.0,118220.0,1.00543]
[1753799694127,1.1074615,118230.0,118220.0,0.31155]
[1753799694428,1.1074615,118230.0,118220.0,1.00539]
[1753799700226,0.3743515,118230.0,118220.0,1.4151357]
[1753799700431,0.3743515,118230.0,118220.0,1.4647657]
[1753799700930,0.6404115,118230.0,118220.0,1.4647657]
[1753799701330,0.2792015,118230.0,118220.0,1.4647657]
[1753799701528,0.11004,118230.0,118220.0,1.4647657]
[1753799701723,4e-05,118230.0,118220.0,1.8255657]
[1753799701931,4e-05,118230.0,118220.0,1.88640515]
[1753799702128,4e-05,118230.0,118220.0,1.8255657]
[1753799703223,0.11004,118230.0,118220.0,1.8255657]
[1753799704936,0.2792015,118230.0,118220.0,1.8255657]
[1753799705230,4e-05,118230.0,118220.0,1.8255657]
[1753799705530,0.11004,118230.0,118220.0,1.8255657]
[1753799705738,4e-05,118230.0,118220.0,1.8255657]
[1753799706538,0.12004,118230.0,118220.0,1.8255657]
[1753799706738,4e-05,118230.0,118220.0,1.8255657]
[1753799706937,0.11004,118230.0,118220.0,1.8255657]
[1753799707236,0.11004,118230.0,118220.0,1.8253257]
[1753799707734,0.11004,118230.0,118220.0,1.90100245]
[1753799708034,0.11004,118230.0,118220.0,1.8253257]
[1753799708834,0.11004,118230.0,118220.0,1.88607667]
[1753799709229,0.3035439,118240.0,118230.0,0.1691615]
[1753799709436,0.4135439,118240.0,118230.0,1.1297114]
[1753799709738,0.4414361,118240.0,118230.0,1.1297114]
[1753799710733,0.6279361,118240.0,118230.0,0.8891415]
[1753799710937,0.7933861,118240.0,118230.0,1.1297114]
[1753799711127,0.7933861,118240.0,118230.0,1.8231914]
[1753799711837,0.7943861,118240.0,118230.0,1.8231914]
[1753799714943,0.7520972,118240.0,118230.0,1.8231914]
[1753799715844,0.7520972,118240.0,118230.0,1.1297114]
[1753799716245,0.5299433,118250.0,118230.0,1.9821397]
[1753799716550,0.8769661,118250.0,118240.0,0.888867]
[1753799716842,0.8769661,118250.0,118240.0,0.6482971]
[1753799717342,0.8769661,118250.0,118240.0,1.582267]
[1753799717544,0.8346795,118250.0,118240.0,1.3416971]
[1753799717745,0.8346795,118250.0,118240.0,1.582267]
[1753799718340,0.9281395,118250.0,118240.0,1.582267]
[1753799719048,0.9291395,118250.0,118240.0,1.582267]
[1753799719347,0.9301395,118250.0,118240.0,1.582267]
[1753799719541,0.092,118250.0,118240.0,2.1836369]
[1753799719840,0.09204,118250.0,118240.0,2.1836369]
[1753799720045,0.00204,118250.0,118240.0,2.1836369]
[1753799720343,0.12204,118250.0,118240.0,2.24438787]
[1753799720844,0.00204,118250.0,118240.0,2.24438787]
[1753799721041,0.11204,118250.0,118240.0,2.24438787]
[1753799721543,0.00204,118250.0,118240.0,2.24438787]
[1753799721942,0.11204,118250.0,118240.0,2.24438787]
[1753799724050,0.00204,118250.0,118240.0,2.24438787]
[1753799724541,0.2537131,118270.0,118260.0,0.6482686]
[1753799724737,0.3637131,118270.0,118260.0,1.5821185]
[1753799725157,0.3894531,118270.0,118260.0,1.5821185]
[1753799725358,0.4571731,118270.0,118260.0,1.58938324]
[1753799725860,0.3647131,118270.0,118260.0,1.58938324]
[1753799726255,0.3657131,118270.0,118260.0,1.58938324]
[1753799728457,0.3234338,118270.0,118260.0,1.58938324]
[1753799730060,0.3234338,118270.0,118260.0,1.95018324]
[1753799730256,0.2811443,118270.0,118260.0,1.95018324]
[1753799730863,0.2811443,118270.0,118260.0,2.01093421]
[1753799731262,0.2811443,118270.0,118260.0,1.70961334]
[1753799731462,0.2811443,118270.0,118260.0,2.01093421]
[1753799732363,0.2811443,118270.0,118260.0,1.95018324]
[1753799732562,0.0845406,118290.0,118260.0,1.84181561]
[1753799732762,0.3536263,118290.0,118280.0,1.2496099]
[1753799732966,0.3536263,118290.0,118280.0,1.9426499]
[1753799732967,0.1690857,118290.0,118280.0,1.9426499]
[1753799733162,0.2690857,118290.0,118280.0,1.9426499]
[1753799733665,0.2690757,118290.0,118280.0,1.72116909]
[1753799733866,0.2690757,118290.0,118280.0,1.96173899]
[1753799735170,0.2958716,118300.0,118290.0,0.3559857]
[1753799735372,0.4258716,118300.0,118290.0,1.2495956]
[1753799735659,0.4258716,118300.0,118290.0,1.0090257]
[1753799735964,0.4516116,118300.0,118290.0,1.0090257]
[1753799736159,0.5193316,118300.0,118290.0,1.0090257]
[1753799736372,0.5660416,118300.0,118290.0,1.0090257]
[1753799738865,0.5660416,118300.0,118290.0,1.2495956]
[1753799740773,0.4725816,118300.0,118290.0,1.2495956]
[1753799741471,0.3836032,118300.0,118290.0,1.2495956]
[1753799741877,0.3413359,118300.0,118290.0,1.2495956]
[1753799742172,0.2535833,118310.0,118300.0,0.6482114]
[1753799742374,0.3635833,118310.0,118300.0,1.9423413]
[1753799744559,0.2690561,118310.0,118300.0,1.9423413]
[1753799746174,0.2790561,118310.0,118300.0,1.9423413]
[1753799747574,0.2690561,118310.0,118300.0,1.9423413]
[1753799748479,0.1690561,118310.0,118300.0,1.9423413]
[1753799748778,0.2790561,118310.0,118300.0,1.9423413]
[1753799750380,0.2790561,118310.0,118300.0,1.2495813]
[1753799750678,0.2790561,118310.0,118300.0,1.9421013]
[1753799751271,0.2790561,118310.0,118300.0,1.7015314]
[1753799751473,0.2790561,118310.0,118300.0,1.9421013]
[1753799751673,0.528525,118320.0,118310.0,0.4476371]
[1753799751872,0.578525,118320.0,118310.0,0.6376171]
[1753799753883,1.1798949,118320.0,118310.0,0.07861]
[1753799754184,0.940345,118320.0,118310.0,1.09247]
[1753799754372,0.940345,118320.0,118310.0,1.16097]
[1753799754878,0.578525,118320.0,118310.0,1.3300172]
[1753799755481,0.578525,118320.0,118310.0,1.16097]
[1753799755782,0.578525,118320.0,118310.0,1.3300172]
[1753799756282,0.578525,118320.0,118310.0,1.33749923]
[1753799756473,0.3937837,118320.0,118310.0,1.33749923]
[1753799756679,0.3937837,118320.0,118310.0,1.57806913]
[1753799756880,0.4739242,118320.0,118310.0,1.57806913]
[1753799758087,0.4739242,118320.0,118310.0,1.40902193]
[1753799758284,0.8775342,118320.0,118310.0,1.16845203]
[1753799758481,0.8775342,118320.0,118310.0,1.09987203]
[1753799758784,0.5167342,118320.0,118310.0,1.33741913]
[1753799759682,0.4744729,118320.0,118310.0,1.57798903]
[1753799760384,0.4316629,118320.0,118310.0,1.57798903]
[1753799760688,0.3319929,118320.0,118310.0,1.57798903]
[1753799760981,0.2840229,118320.0,118310.0,1.57798903]
[1753799761189,0.1917628,118320.0,118310.0,1.57798903]
[1753799761378,0.2790328,118320.0,118310.0,1.57798903]
[1753799764785,0.2790328,118320.0,118310.0,0.88566903]
[1753799765090,0.2790328,118320.0,118310.0,1.93862903]
[1753799766785,0.2118571,118310.0,118300.0,0.2583283]
[1753799766981,1.071887,118310.0,118300.0,1.09215]
[1753799767383,1.071887,118310.0,118300.0,0.77069]
[1753799767889,1.071887,118310.0,118300.0,1.16065]
[1753799768083,1.071887,118310.0,118300.0,1.3297115]
[1753799768084,0.8302971,118310.0,118300.0,1.3297115]
[1753799768291,0.8302971,118310.0,118300.0,0.6376315]
[1753799768489,0.8302971,118310.0,118300.0,1.3297115]
[1753799772792,0.8302971,118310.0,118300.0,0.46857]
[1753799772981,1.071887,118310.0,118300.0,1.09207]
[1753799773595,1.071887,118310.0,118300.0,1.1603]
[1753799774590,1.09070825,118310.0,118300.0,1.1603]
[1753799774794,0.84911835,118310.0,118300.0,1.1603]
[1753799774983,1.08968825,118310.0,118300.0,1.1603]
[1753799775183,1.070867,118310.0,118300.0,1.1603]
[1753799775394,1.070867,118310.0,118300.0,1.3293614]
[1753799775693,1.070867,118310.0,118300.0,1.1603]
[1753799776395,1.08968806,118310.0,118300.0,1.1603]
[1753799778096,1.09070806,118310.0,118300.0,0.73893]
[1753799778292,1.09070806,118310.0,118300.0,0.04701]
[1753799778497,0.3623758,118290.0,118280.0,0.35093]
[1753799778695,1.4345457,118290.0,118280.0,1.04281]
[1753799778997,1.4345457,118290.0,118280.0,1.09033]
[1753799779592,1.4335257,118290.0,118280.0,0.69188]
[1753799779799,0.3613701,118280.0,118270.0,0.73880887]
[1753799779992,0.3613701,118280.0,118270.0,1.43068887]
[1753799779993,0.8321701,118280.0,118270.0,1.43068887]
[1753799780196,0.8321701,118280.0,118270.0,1.32783658]
[1753799780392,0.8321701,118280.0,118270.0,1.39606658]
[1753799780693,0.4713701,118280.0,118270.0,1.39606658]
[1753799781101,0.4713701,118280.0,118270.0,1.33531561]
[1753799781298,0.4713701,118280.0,118270.0,1.33631561]
[1753799782201,0.8321701,118280.0,118270.0,1.33631561]
[1753799782603,0.4713701,118280.0,118270.0,1.33631561]
[1753799782796,0.8321701,118280.0,118270.0,1.33631561]
[1753799783202,0.4713701,118280.0,118270.0,1.33631561]
[1753799784296,0.2790901,118280.0,118270.0,1.33631561]
[1753799784501,0.2990901,118280.0,118270.0,1.93768551]
[1753799786401,0.13,118280.0,118270.0,1.93768551]
[1753799786593,0.2959012,118290.0,118280.0,0.6357701]
[1753799786797,0.4259012,118290.0,118280.0,0.87634]
[1753799787104,0.4259012,118290.0,118280.0,0.6357701]
[1753799787504,0.3413579,118290.0,118280.0,0.6357701]
[1753799787700,0.2113345,118300.0,118290.0,0.3571557]
[1753799787902,0.3213345,118300.0,118290.0,1.5680856]
[1753799789605,0.7321145,118300.0,118290.0,0.6357557]
[1753799789811,1.1149844,118300.0,118290.0,0.46668]
[1753799790020,1.1160044,118300.0,118290.0,0.77023]
[1753799790313,1.2850764,118300.0,118290.0,0.7392]
[1753799790810,1.1160044,118300.0,118290.0,0.7392]
[1753799791010,0.3623757,118290.0,118280.0,0.04752]
[1753799791213,0.36239,118280.0,118270.0,0.3519]
[1753799791413,1.0937599,118280.0,118270.0,1.04354]
[1753799791716,1.0927399,118280.0,118270.0,1.11177]
[1753799792018,0.85217,118280.0,118270.0,1.11177]
[1753799792914,0.85217,118280.0,118270.0,1.2808743]
[1753799793413,0.85217,118280.0,118270.0,1.2818743]
[1753799794113,0.13,118280.0,118270.0,1.98066322]
[1753799794315,0.13,118280.0,118270.0,2.04141419]
[1753799794504,0.2536053,118300.0,118290.0,0.3571557]
[1753799794705,0.3636053,118300.0,118290.0,1.3273557]
[1753799794919,0.3470772,118300.0,118290.0,1.3273557]
[1753799796016,0.2790615,118300.0,118290.0,1.3273557]
[1753799796716,0.11,118300.0,118290.0,1.3273557]
[1753799796917,0.6143656,118320.0,118310.0,0.1690472]
[1753799797118,0.9254769,118320.0,118310.0,1.15824]
[1753799798815,0.9254769,118320.0,118310.0,1.3272872]
[1753799799022,0.8826669,118320.0,118310.0,1.3272872]
[1753799799609,0.9254769,118320.0,118310.0,1.15824]
[1753799799815,0.9066456,118320.0,118310.0,1.15824]
[1753799800215,0.9076656,118320.0,118310.0,0.92716]
[1753799800419,1.26448991,118320.0,118310.0,0.92716]
[1753799800620,1.26448991,118320.0,118310.0,1.09001]
[1753799800823,0.92650099,118320.0,118310.0,1.09001]
[1753799801120,0.9076656,118320.0,118310.0,1.09001]
[1753799801422,0.9076656,118320.0,118310.0,1.08989]
[1753799801813,0.9066456,118320.0,118310.0,1.15812]
[1753799803325,0.9066456,118320.0,118310.0,1.3271672]
[1753799803817,0.9066456,118320.0,118310.0,1.15812]
[1753799805526,0.9066456,118320.0,118310.0,1.3271671]
[1753799805926,0.7643456,118320.0,118310.0,1.3271671]
[1753799806234,0.8610156,118320.0,118310.0,1.33477142]
[1753799806533,0.8610156,118320.0,118310.0,1.3271671]
[1753799807233,0.7143656,118320.0,118310.0,1.3271671]
[1753799807834,0.8594156,118320.0,118310.0,1.33475319]
[1753799809533,0.8594156,118320.0,118310.0,1.15812]
[1753799809728,0.9022256,118320.0,118310.0,1.15812]
[1753799810228,0.9022256,118320.0,118290.0,0.4453368]
[1753799810229,0.2376115,118300.0,118290.0,0.89593014]
[1753799810539,0.4769215,118300.0,118290.0,1.53366484]
[1753799810839,0.4769215,118300.0,118290.0,1.70274054]
[1753799811241,0.2890615,118300.0,118290.0,1.70274054]
[1753799815938,1.17571042,118300.0,118290.0,0.47406]
[1753799816132,1.17677042,118300.0,118290.0,0.04735]
[1753799816341,1.17677042,118300.0,118290.0,0.73839]
[1753799816536,0.3569501,118280.0,118270.0,0.49530503]
[1753799816741,0.71732534,118280.0,118270.0,1.23365503]
[1753799816942,0.71732534,118280.0,118270.0,1.22581097]
[1753799817144,0.4769501,118280.0,118270.0,1.22581097]
[1753799817741,0.4769501,118280.0,118270.0,1.3341643]
[1753799818832,0.12,118280.0,118270.0,1.67210614]
[1753799819032,0.12,118280.0,118270.0,2.09365711]
[1753799819231,0.6567159,118300.0,118290.0,0.6431357]
[1753799819441,0.7667159,118300.0,118290.0,1.3341357]
[1753799819838,0.8633859,118300.0,118290.0,1.3341357]
[1753799820438,0.6821793,118300.0,118290.0,1.3341357]
[1753799821037,0.7079193,118300.0,118290.0,1.3341357]
[1753799821238,0.7562993,118300.0,118290.0,1.3341357]
[1753799821438,0.8272293,118300.0,118290.0,1.16506]
[1753799821634,0.8272293,118300.0,118290.0,1.3341358]
[1753799822441,1.20900114,118300.0,118290.0,0.73831]
[1753799822642,1.22800016,118300.0,118290.0,0.04735]
[1753799823343,0.88903832,118300.0,118290.0,0.47406]
[1753799823842,0.52823832,118300.0,118290.0,0.6431358]
[1753799824040,0.52823832,118300.0,118290.0,0.47406]
[1753799824041,0.4680593,118300.0,118290.0,0.47406]
[1753799824441,0.8288593,118300.0,118290.0,0.47406]
[1753799824749,0.8700393,118300.0,118290.0,0.47406]
[1753799824936,0.8700393,118300.0,118290.0,0.23702]
[1753799825142,1.20798114,118300.0,118290.0,0.23702]
[1753799825343,0.35695,118280.0,118270.0,0.77996097]
[1753799825548,0.47695,118280.0,118270.0,1.53917097]
[1753799826647,0.47695,118280.0,118270.0,1.34847527]
[1753799827054,0.47695,118280.0,118270.0,1.2877243]
[1753799827852,0.28909,118280.0,118270.0,1.6485243]
[1753799828051,0.28909,118280.0,118270.0,1.62566614]
[1753799828244,0.28909,118280.0,118270.0,1.2877243]
[1753799828847,0.31483,118280.0,118270.0,1.2877243]
[1753799829052,0.38576,118280.0,118270.0,1.2877243]
[1753799829449,0.28909,118280.0,118270.0,1.2877243]
[1753799829751,0.12,118280.0,118270.0,1.6485243]
[1753799831249,0.12,118280.0,118270.0,1.98646614]
[1753799832354,0.28909,118280.0,118270.0,1.6485243]
[1753799832753,0.28909,118280.0,118270.0,1.2877243]
[1753799833254,0.28909,118280.0,118270.0,1.6485243]
[1753799833447,0.28909,118280.0,118270.0,1.2877243]
[1753799833648,0.28909,118280.0,118270.0,1.6485243]
[1753799834050,0.28909,118280.0,118270.0,1.2877243]
[1753799834253,0.28909,118280.0,118270.0,1.6485243]
[1753799834556,0.28909,118280.0,118270.0,1.70927527]
[1753799835844,0.12,118280.0,118270.0,2.04721711]
[1753799836653,0.2113472,118290.0,118280.0,0.36106]
[1753799836855,0.2536438,118300.0,118290.0,0.6493557]
[1753799837057,0.12004,118300.0,118290.0,2.03881754]
[1753799837355,4e-05,118300.0,118290.0,2.03881754]
[1753799837548,0.13004,118300.0,118290.0,2.03881754]
[1753799837747,0.2991014,118300.0,118290.0,2.03881754]
[1753799837947,0.2991014,118300.0,118290.0,1.3400757]
[1753799840255,0.4897714,118300.0,118290.0,1.3399957]
[1753799840757,0.3597714,118300.0,118290.0,1.3399957]
[1753799842352,0.3597714,118300.0,118290.0,1.40074667]
[1753799843557,0.3597714,118300.0,118290.0,1.3399957]
[1753799843858,0.2170714,118300.0,118290.0,1.17092]
[1753799844063,0.7205714,118300.0,118290.0,1.17092]
[1753799845474,0.7205714,118300.0,118290.0,1.3399957]
[1753799845866,0.7205714,118300.0,118290.0,1.17092]
[1753799846364,0.7205714,118300.0,118290.0,1.3399958]
[1753799847566,0.6777614,118300.0,118290.0,1.3399958]
[1753799848162,0.1691014,118300.0,118290.0,1.73868861]
[1753799848462,0.1691014,118300.0,118290.0,1.67793764]
[1753799848859,0.1691014,118300.0,118290.0,1.3399958]
[1753799851970,0.2791014,118300.0,118290.0,1.3399958]
[1753799852266,4e-05,118300.0,118290.0,2.03873764]
[1753799852464,0.10004,118300.0,118290.0,2.03873764]
[1753799853366,0.10004,118300.0,118290.0,2.09948861]
[1753799853560,0.2113146,118310.0,118300.0,0.98728324]
[1753799853767,0.3313146,118310.0,118300.0,0.98728324]
[1753799854660,0.3313146,118310.0,118300.0,0.6493414]
[1753799855171,0.4812446,118310.0,118300.0,0.6493414]
[1753799855575,0.9210146,118310.0,118300.0,0.48028]
[1753799855773,1.41520644,118310.0,118300.0,1.1706]
[1753799855964,1.41520644,118310.0,118300.0,1.18933385]
[1753799856464,1.41520644,118310.0,118300.0,1.35839535]
[1753799856465,1.0772646,118310.0,118300.0,1.35839535]
[1753799856970,1.0297946,118310.0,118300.0,1.35839535]
[1753799857172,0.6921146,118310.0,118300.0,1.35839535]
[1753799857568,0.7662646,118310.0,118300.0,1.35839535]
[1753799857774,0.9210146,118310.0,118300.0,1.35839535]
[1753799859474,0.9210146,118310.0,118300.0,0.25685385]
[1753799859674,0.4326058,118290.0,118280.0,0.56007636]
[1753799859873,0.9875558,118290.0,118280.0,1.00811636]
[1753799860184,1.0350258,118290.0,118280.0,0.81614636]
[1753799860577,1.0350258,118290.0,118280.0,0.99054636]
[1753799860878,1.37296764,118290.0,118280.0,1.16889636]
[1753799861774,1.37296764,118290.0,118280.0,0.75095097]
[1753799861975,1.37296764,118290.0,118280.0,0.06075097]
[1753799862180,1.73376764,118290.0,118280.0,0.6902]
[1753799863875,1.73376764,118290.0,118280.0,0.73936]
[1753799864082,1.73376764,118290.0,118280.0,0.80011097]
[1753799864476,1.73376764,118290.0,118280.0,0.73936]
[1753799865686,1.73376764,118290.0,118280.0,1.07286]
[1753799866784,1.3958258,118290.0,118280.0,1.07286]
[1753799866982,1.73376764,118290.0,118280.0,1.07286]
[1753799867897,1.75291967,118290.0,118280.0,1.07286]
[1753799868896,1.75291967,118290.0,118280.0,1.00351]
[1753799869597,1.73376764,118290.0,118280.0,1.00351]
[1753799869793,1.73376764,118290.0,118280.0,1.07286]
[1753799871389,1.74148075,118290.0,118280.0,1.07286]
[1753799873700,1.74148075,118290.0,118260.0,0.2614325]
[1753799873701,0.3058143,118270.0,118260.0,0.46117]
[1753799874001,1.35132614,118270.0,118260.0,1.15125]
[1753799874395,1.71212614,118270.0,118260.0,1.15125]
[1753799875599,1.71212614,118270.0,118260.0,0.39182]
[1753799875802,1.71212614,118270.0,118260.0,0.92389]
[1753799876198,1.71212614,118270.0,118260.0,0.92489]
[1753799877498,1.77930945,118270.0,118260.0,0.92489]
[1753799879605,1.77930945,118270.0,118260.0,1.0829]
[1753799879794,1.77930945,118270.0,118260.0,1.15225]
[1753799880001,1.77930945,118270.0,118260.0,0.46217]
[1753799880808,1.44136761,118270.0,118260.0,0.46217]
[1753799881105,1.77930945,118270.0,118260.0,0.46217]
[1753799881807,1.77930945,118270.0,118260.0,0.39282]
[1753799882106,0.5426129,118250.0,118240.0,0.46117]
[1753799882301,2.40219474,118250.0,118240.0,0.46117]
[1753799882505,2.40219474,118250.0,118240.0,0.04916]
[1753799882702,0.4668472,118240.0,118230.0,1.15117]
[1753799882902,1.37136904,118240.0,118230.0,1.15117]
[1753799883505,1.37136904,118240.0,118230.0,0.46117]
[1753799883706,1.37136904,118240.0,118230.0,1.15117]
[1753799884307,1.37236904,118240.0,118230.0,1.15117]
[1753799885206,1.0344272,118240.0,118230.0,1.15117]
[1753799886204,1.0344272,118240.0,118230.0,0.46117]
[1753799886507,1.0344272,118240.0,118230.0,1.15117]
[1753799886508,0.9890372,118240.0,118230.0,1.15117]
[1753799890809,1.22955745,118240.0,118230.0,1.15117]
[1753799891510,1.22955745,118240.0,118230.0,1.3203315]
[1753799891709,0.6609472,118240.0,118230.0,1.56085175]
[1753799891905,0.6609472,118240.0,118230.0,1.39169025]
[1753799892108,0.6609472,118240.0,118230.0,1.3203315]
[1753799893815,0.4918,118240.0,118230.0,1.3203315]
[1753799894511,0.4918,118240.0,118230.0,1.92165175]
[1753799894512,0.131,118240.0,118230.0,1.92165175]
[1753799895318,0.131,118240.0,118230.0,1.23165175]
[1753799895614,0.3001473,118240.0,118230.0,1.3201716]
[1753799895809,0.7367273,118240.0,118230.0,1.3201716]
[1753799896116,1.12858755,118240.0,118230.0,1.15101]
[1753799896311,0.8880673,118240.0,118230.0,1.3201716]
[1753799896516,0.8880673,118240.0,118230.0,1.15101]
[1753799896906,0.8880673,118240.0,118230.0,1.3201715]
[1753799897216,0.8880673,118240.0,118230.0,1.15101]
[1753799897414,0.8880673,118240.0,118230.0,1.3201716]
[1753799897614,0.8880673,118240.0,118230.0,1.15101]
[1753799897912,0.8880673,118240.0,118230.0,1.3201716]
[1753799898619,0.8880673,118240.0,118230.0,1.15101]
[1753799898816,0.8880673,118240.0,118230.0,1.3201715]
[1753799899117,0.8880673,118240.0,118230.0,1.15101]
[1753799899714,0.8880673,118240.0,118230.0,1.3201715]
[1753799899915,1.37814211,118240.0,118230.0,0.46642]
[1753799900420,1.0399373,118240.0,118230.0,0.46642]
[1753799900622,1.37814211,118240.0,118230.0,0.46642]
[1753799902613,1.38617865,118240.0,118230.0,0.46642]
[1753799903006,0.1691902,118210.0,118200.0,0.43865]
[1753799903214,0.7197602,118210.0,118200.0,0.43865]
[1753799903412,1.31215501,118210.0,118200.0,1.2975745]
[1753799903712,0.9739502,118210.0,118200.0,1.3457245]
[1753799903908,0.8671102,118210.0,118200.0,1.3457245]
[1753799904417,0.7955402,118210.0,118200.0,1.3477245]
[1753799904611,0.6897002,118210.0,118200.0,1.3506845]
[1753799905219,0.8370502,118210.0,118200.0,1.18148]
[1753799905418,0.8671102,118210.0,118200.0,1.18923315]
[1753799906017,0.9739502,118210.0,118200.0,1.18923315]
[1753799907109,0.9739502,118210.0,118200.0,1.35843765]
[1753799907310,0.9739502,118210.0,118200.0,1.18923315]
[1753799907509,0.9739502,118210.0,118200.0,0.4918]
[1753799907709,1.31215501,118210.0,118200.0,0.005]
[1753799907916,1.4265971,118210.0,118200.0,0.005]
[1753799908117,2.1162771,118210.0,118200.0,0.22798]
[1753799908328,2.1162771,118210.0,118200.0,0.05315]
[1753799909011,2.1162771,118210.0,118200.0,0.005]
[1753799909214,1.77807229,118210.0,118200.0,0.005]
[1753799909412,2.1162771,118210.0,118200.0,0.005]
[1753799910521,2.1162771,118210.0,118200.0,0.05315]
[1753799910724,2.1162771,118210.0,118200.0,0.05015]
[1753799911321,2.1162771,118210.0,118200.0,0.04815]
[1753799912421,0.5904965,118200.0,118190.0,0.04815]
[1753799912715,1.39950131,118200.0,118190.0,0.04815]
[1753799913619,0.3558288,118190.0,118180.0,1.17652]
[1753799913927,1.0190088,118190.0,118180.0,1.17652]
[1753799914933,1.31218361,118190.0,118180.0,1.17652]
[1753799915117,1.35721361,118190.0,118180.0,1.17652]
[1753799915618,1.35721361,118190.0,118180.0,1.17952]
[1753799915816,1.0190088,118190.0,118180.0,1.17952]
[1753799916013,1.35721361,118190.0,118180.0,1.17952]
[1753799916421,1.0190088,118190.0,118180.0,1.17952]
[1753799917018,1.0190088,118190.0,118180.0,0.4152]
[1753799917019,2.04693361,118190.0,118180.0,0.4152]